bitfinex/quotes_BTCUSD_20250826
["timestamp","ask_amount","ask_price","bid_price","bid_amount"]
[1756190247998,0.027285,110210.0,110200.0,0.42926022]
[1756190248202,0.030355,110210.0,110200.0,0.42926022]
[1756190248642,0.6900001,110210.0,110200.0,0.42926022]
[1756190248856,0.6919801,110210.0,110200.0,0.42926022]
[1756190249260,0.027285,110210.0,110200.0,1.08890532]
[1756190249470,0.027285,110210.0,110200.0,0.42926022]
[1756190249680,0.6627151,110220.0,110210.0,0.18147173]
[1756190249886,0.84615037,110220.0,110210.0,0.27293375]
[1756190250086,0.6646951,110220.0,110210.0,0.27293375]
[1756190250303,0.19051074,110230.0,110220.0,0.18145527]
[1756190250522,0.00505,110230.0,110220.0,0.42922729]
[1756190250723,0.91995273,110240.0,110220.0,0.42922729]
[1756190250724,1.00882273,110240.0,110220.0,0.42922729]
[1756190250934,0.00307,110230.0,110220.0,0.42922729]
[1756190251154,0.00505,110230.0,110220.0,0.42922729]
[1756190251558,0.00311769,110230.0,110220.0,0.42922729]
[1756190251762,4.769e-05,110230.0,110220.0,0.42922729]
[1756190252729,0.00311769,110230.0,110220.0,0.42922729]
[1756190253154,4.769e-05,110230.0,110220.0,0.42922729]
[1756190253780,0.02732569,110230.0,110220.0,0.42922729]
[1756190254326,4.769e-05,110230.0,110220.0,0.42922729]
[1756190255837,4.769e-05,110230.0,110220.0,0.42918729]
[1756190256044,4.769e-05,110230.0,110220.0,0.27358729]
[1756190256273,4.769e-05,110230.0,110220.0,0.42918729]
[1756190258984,4.769e-05,110230.0,110220.0,0.27358729]
[1756190259197,0.00311769,110230.0,110220.0,0.27358729]
[1756190259415,0.00311769,110230.0,110220.0,0.42914729]
[1756190259817,4.769e-05,110230.0,110220.0,0.42914729]
[1756190261072,4.769e-05,110230.0,110220.0,0.43114729]
[1756190261228,0.00311769,110230.0,110220.0,0.43114729]
[1756190261492,0.00311769,110230.0,110220.0,0.43414729]
[1756190263945,0.00311769,110230.0,110220.0,0.27858729]
[1756190264130,0.18455649,110230.0,110220.0,0.43410729]
[1756190264338,0.66474279,110230.0,110220.0,0.43410729]
[1756190264756,0.00509769,110230.0,110220.0,0.43410729]
[1756190264960,4.769e-05,110230.0,110220.0,0.43410729]
[1756190267197,0.00311769,110230.0,110220.0,0.43410729]
[1756190267642,0.00509769,110230.0,110220.0,0.43410729]
[1756190267847,0.00311769,110230.0,110220.0,0.43410729]
[1756190268627,0.00509769,110230.0,110220.0,0.43410729]
[1756190271628,0.18653649,110230.0,110220.0,0.43410729]
[1756190272188,0.00509769,110230.0,110220.0,0.43410729]
[1756190272592,0.18653649,110230.0,110220.0,0.43410729]
[1756190274019,0.00509769,110230.0,110220.0,0.43410729]
[1756190277231,0.00311769,110230.0,110220.0,0.43410729]
[1756190281326,0.00510769,110230.0,110220.0,0.43410729]
[1756190282530,0.84619159,110230.0,110220.0,0.43339729]
[1756190282746,0.18654649,110230.0,110220.0,0.25194202]
[1756190282980,0.84619159,110230.0,110220.0,0.25194202]
[1756190283458,0.84619159,110230.0,110220.0,0.09646202]
[1756190283672,0.84619159,110230.0,110220.0,0.25190202]
[1756190284182,0.84619159,110230.0,110220.0,0.09646202]
[1756190284395,0.84619159,110230.0,110220.0,0.25190202]
[1756190284945,0.8430739,110230.0,110220.0,0.25190202]
[1756190285892,0.8703529,110230.0,110220.0,0.25190202]
[1756190286108,1.0257929,110230.0,110220.0,0.25190202]
[1756190286966,1.0289429,110230.0,110220.0,0.25190202]
[1756190287582,0.3692978,110230.0,110220.0,0.25190202]
[1756190287789,1.0289429,110230.0,110220.0,0.25190202]
[1756190289010,1.0289429,110230.0,110220.0,0.005]
[1756190289437,1.3689429,110230.0,110220.0,0.005]
[1756190291387,1.3689429,110230.0,110220.0,0.002]
[1756190294815,1.3689029,110230.0,110220.0,0.002]
[1756190295594,1.2135029,110230.0,110220.0,0.002]
[1756190296021,1.3689029,110230.0,110220.0,0.002]
[1756190298651,1.2135029,110230.0,110220.0,0.002]
[1756190298827,1.3689029,110230.0,110220.0,0.002]
[1756190300655,1.2135029,110230.0,110220.0,0.002]
[1756190300862,1.3689029,110230.0,110220.0,0.002]
[1756190301737,1.2135029,110230.0,110220.0,0.002]
[1756190301904,1.3689029,110230.0,110220.0,0.002]
[1756190302084,1.2135029,110230.0,110220.0,0.00398]
[1756190302284,1.2083629,110230.0,110220.0,0.00717]
[1756190302495,0.2087178,110230.0,110220.0,0.28008729]
[1756190303114,0.8683629,110230.0,110220.0,0.28008729]
[1756190305042,0.8683629,110230.0,110220.0,0.27808729]
[1756190305675,0.8683629,110230.0,110220.0,0.27908729]
[1756190306146,0.027279,110230.0,110220.0,0.43444729]
[1756190307350,0.8410675,110240.0,110230.0,0.1814388]
[1756190307722,0.8683445,110240.0,110230.0,0.09651202]
[1756190308274,0.8410675,110240.0,110230.0,0.09651202]
[1756190308458,0.8431575,110240.0,110230.0,0.09357202]
[1756190308868,0.8410675,110240.0,110230.0,0.27795082]
[1756190309381,0.56096136,110250.0,110230.0,0.27795082]
[1756190309590,0.6596451,110240.0,110230.0,0.27795082]
[1756190309796,1.37601418,110250.0,110230.0,0.27795082]
[1756190310511,0.18142235,110240.0,110230.0,0.27795082]
[1756190310727,0.84106745,110240.0,110230.0,0.27795082]
[1756190310936,0.84631745,110240.0,110230.0,0.24682202]
[1756190311349,0.84631745,110240.0,110230.0,0.09146202]
[1756190311763,0.84631745,110240.0,110230.0,0.09357202]
[1756190312318,0.84315745,110240.0,110230.0,0.27501082]
[1756190312608,0.6596451,110240.0,110230.0,0.27795082]
[1756190314657,0.84106745,110240.0,110230.0,0.27795082]
[1756190314866,0.84106745,110240.0,110230.0,0.28095082]
[1756190315954,0.84315745,110240.0,110230.0,0.27801082]
[1756190316220,0.84631745,110240.0,110230.0,0.25189202]
[1756190316938,0.84631745,110240.0,110230.0,0.24978202]
[1756190318330,0.84631745,110240.0,110230.0,0.25189202]
[1756190318944,0.84631745,110240.0,110230.0,0.24978202]
[1756190319635,0.84631745,110240.0,110230.0,0.24974202]
[1756190320573,0.84631745,110240.0,110230.0,0.09446202]
[1756190320820,0.84631745,110240.0,110230.0,0.24974202]
[1756190321246,0.84631745,110240.0,110230.0,0.25174202]
[1756190321878,0.84631745,110240.0,110230.0,0.43529082]
[1756190322129,0.84315745,110240.0,110230.0,0.43529082]
[1756190322340,0.84106745,110240.0,110230.0,0.43823082]
[1756190322561,0.6596451,110240.0,110230.0,0.43823082]
[1756190322994,0.84106745,110240.0,110230.0,0.43823082]
[1756190323357,0.84106745,110240.0,110230.0,0.43819082]
[1756190323993,0.02732472,110250.0,110240.0,0.18142235]
[1756190324165,4.772e-05,110250.0,110240.0,0.27499437]
[1756190324366,4.772e-05,110250.0,110240.0,0.27793437]
[1756190328772,4.772e-05,110250.0,110240.0,0.95502849]
[1756190329971,4.772e-05,110250.0,110240.0,1.11022849]
[1756190330176,4.772e-05,110250.0,110240.0,0.29538339]
[1756190330386,4.772e-05,110250.0,110240.0,0.45158339]
[1756190331240,4.772e-05,110250.0,110240.0,0.45258339]
[1756190331817,4.772e-05,110250.0,110240.0,0.45158339]
[1756190332840,4.772e-05,110250.0,110240.0,0.44864339]
[1756190333040,0.00213772,110250.0,110240.0,0.44864339]
[1756190333338,4.772e-05,110250.0,110240.0,0.45158339]
[1756190335492,4.772e-05,110250.0,110240.0,0.45258339]
[1756190335992,4.772e-05,110250.0,110240.0,0.45254339]
[1756190337872,4.772e-05,110250.0,110240.0,0.45154339]
[1756190340619,4.772e-05,110250.0,110240.0,1.11118849]
[1756190341367,4.772e-05,110250.0,110240.0,0.45154339]
[1756190341569,4.772e-05,110250.0,110240.0,1.11118849]
[1756190341967,4.772e-05,110250.0,110240.0,1.45118849]
[1756190342598,0.18179749,110300.0,110270.0,0.18137299]
[1756190342809,0.84101503,110290.0,110280.0,0.24884897]
[1756190343005,0.84300503,110290.0,110280.0,0.24658202]
[1756190343336,0.84300503,110290.0,110280.0,0.42793856]
[1756190343604,0.87027003,110290.0,110280.0,0.42793856]
[1756190344025,0.87933703,110290.0,110280.0,0.42793856]
[1756190344425,0.87933703,110290.0,110280.0,0.24658202]
[1756190344636,0.88246703,110290.0,110280.0,0.24658202]
[1756190345440,0.6889001,110290.0,110280.0,0.42994856]
[1756190345697,0.6889001,110290.0,110280.0,0.43303856]
[1756190345903,0.029255,110290.0,110280.0,0.43303856]
[1756190348022,0.6889001,110290.0,110280.0,0.43303856]
[1756190348449,0.6616351,110290.0,110280.0,0.43303856]
[1756190348872,0.8429752,110290.0,110280.0,0.43303856]
[1756190349190,0.8429752,110290.0,110280.0,0.42994856]
[1756190349776,0.6616351,110290.0,110280.0,0.42994856]
[1756190350499,0.8429752,110290.0,110280.0,0.42994856]
[1756190350718,0.1813401,110290.0,110280.0,0.42793856]
[1756190350938,0.8422452,110290.0,110280.0,0.42793856]
[1756190351806,0.6609051,110290.0,110280.0,0.43303856]
[1756190352019,0.6596451,110290.0,110280.0,0.43303856]
[1756190353091,0.86877678,110300.0,110280.0,0.43303856]
[1756190353308,0.87722923,110300.0,110290.0,0.18360685]
[1756190353519,0.87920923,110300.0,110290.0,0.27589212]
[1756190353721,0.87920923,110300.0,110290.0,0.09455202]
[1756190353926,0.87920923,110300.0,110290.0,0.09146202]
[1756190354734,0.87920923,110300.0,110290.0,0.24646202]
[1756190355374,0.87920923,110300.0,110290.0,0.09146202]
[1756190355585,0.88160923,110300.0,110290.0,0.24646202]
[1756190356216,0.87920923,110300.0,110290.0,0.24646202]
[1756190356374,0.88161115,110300.0,110290.0,0.24646202]
[1756190357796,0.88161115,110300.0,110290.0,0.09146202]
[1756190357972,0.88161115,110300.0,110290.0,0.24646202]
[1756190358862,0.88161115,110300.0,110290.0,0.09146202]
[1756190359078,0.87921115,110300.0,110290.0,0.24646202]
[1756190359714,0.87921144,110300.0,110290.0,0.24646202]
[1756190361373,0.88161144,110300.0,110290.0,0.24646202]
[1756190361529,0.87921144,110300.0,110290.0,0.24646202]
[1756190361735,0.87921144,110300.0,110290.0,0.24642202]
[1756190361959,0.88121144,110300.0,110290.0,0.09146202]
[1756190362168,0.88121144,110300.0,110290.0,0.24642202]
[1756190365028,0.88361144,110300.0,110290.0,0.24642202]
[1756190365603,0.88361144,110300.0,110290.0,0.24638202]
[1756190365797,0.87515678,110300.0,110290.0,0.09146202]
[1756190366004,0.88361553,110300.0,110290.0,0.24638202]
[1756190366218,0.1813401,110290.0,110280.0,0.15492]
[1756190366441,0.18136542,110280.0,110260.0,0.29058943]
[1756190366645,0.18136542,110280.0,110270.0,0.24638202]
[1756190366851,0.18336542,110280.0,110270.0,0.24638202]
[1756190367753,0.84301052,110280.0,110270.0,0.24638202]
[1756190368750,0.84301052,110280.0,110270.0,0.24952202]
[1756190368949,0.84301052,110280.0,110270.0,0.24638202]
[1756190369154,0.84301052,110280.0,110270.0,0.09146202]
[1756190369329,0.87027652,110280.0,110270.0,0.24638202]
[1756190369535,0.87027652,110280.0,110270.0,0.24952202]
[1756190369726,0.87027652,110280.0,110270.0,0.25153202]
[1756190370268,0.87027652,110280.0,110270.0,0.24952202]
[1756190370786,0.87027652,110280.0,110270.0,0.24634202]
[1756190371749,0.87874759,110280.0,110270.0,0.24634202]
[1756190372325,0.87874759,110280.0,110270.0,0.25149202]
[1756190372536,0.87027652,110280.0,110270.0,0.25149202]
[1756190373173,0.87027652,110280.0,110270.0,0.24634202]
[1756190374377,0.87265652,110280.0,110270.0,0.09146202]
[1756190374550,0.87265652,110280.0,110270.0,0.24934202]
[1756190374938,0.6819532,110280.0,110270.0,0.24934202]
[1756190375310,0.86331862,110280.0,110270.0,0.24934202]
[1756190375512,0.86931652,110280.0,110270.0,0.24934202]
[1756190376143,0.86891652,110280.0,110270.0,0.24934202]
[1756190379237,1.02375652,110280.0,110270.0,0.24934202]
[1756190379962,1.02375652,110280.0,110270.0,0.15788]
[1756190381318,0.86891652,110280.0,110270.0,0.15788]
[1756190381517,0.20927142,110280.0,110270.0,0.16203]
[1756190381713,0.86891652,110280.0,110270.0,0.16203]
[1756190381923,0.20927142,110280.0,110270.0,0.16203]
[1756190382134,0.86891652,110280.0,110270.0,0.16203]
[1756190382547,1.52856162,110280.0,110270.0,0.16203]
[1756190383325,1.52856162,110280.0,110270.0,0.16002]
[1756190383936,1.52856162,110280.0,110270.0,0.16203]
[1756190385652,1.52856162,110280.0,110270.0,0.16003]
[1756190386769,1.52856162,110280.0,110270.0,0.15802]
[1756190387320,1.52856162,110280.0,110270.0,0.15902]
[1756190390886,1.68336162,110280.0,110270.0,0.15902]
[1756190392396,1.52856162,110280.0,110270.0,0.15902]
[1756190392604,1.68336162,110280.0,110270.0,0.16103]
[1756190392840,1.68336162,110280.0,110270.0,0.15902]
[1756190394298,1.68336162,110280.0,110270.0,0.15588]
[1756190394499,1.68336162,110280.0,110270.0,0.001]
[1756190395156,1.68376162,110280.0,110270.0,0.001]
[1756190395364,2.02376162,110280.0,110270.0,0.001]
[1756190395957,2.04919389,110280.0,110270.0,0.001]
[1756190396391,2.04915389,110280.0,110270.0,0.001]
[1756190396860,2.0686847,110280.0,110270.0,0.001]
[1756190397005,1.9139247,110280.0,110270.0,0.001]
[1756190397204,2.0686847,110280.0,110270.0,0.001]
[1756190398566,2.0696847,110280.0,110270.0,0.001]
[1756190399540,0.18138944,110260.0,110250.0,0.00296]
[1756190399722,0.99575454,110260.0,110250.0,0.09638202]
[1756190399932,0.18142235,110240.0,110230.0,0.22801699]
[1756190400147,0.84106745,110240.0,110230.0,0.32143901]
[1756190400578,0.84106745,110240.0,110230.0,0.32439901]
[1756190400798,0.84106745,110240.0,110230.0,0.32444673]
[1756190402954,0.86834245,110240.0,110230.0,0.32444673]
[1756190404168,0.86834245,110240.0,110230.0,0.50588553]
[1756190404834,0.027275,110240.0,110230.0,0.50588553]
[1756190405033,0.6869201,110240.0,110230.0,0.50588553]
[1756190405177,0.84106745,110240.0,110230.0,0.50588553]
[1756190405423,0.6596451,110240.0,110230.0,0.43258854]
[1756190406292,0.84106745,110240.0,110230.0,0.43258854]
[1756190406507,0.84106745,110240.0,110230.0,0.25114974]
[1756190406752,0.84106745,110240.0,110230.0,0.43258854]
[1756190407319,0.84106745,110240.0,110230.0,0.43758854]
[1756190407531,0.84106745,110240.0,110230.0,0.25614974]
[1756190407737,0.84106745,110240.0,110230.0,0.25114974]
[1756190408739,1.50135255,110240.0,110230.0,0.09642974]
[1756190408969,1.50135255,110240.0,110230.0,0.24618974]
[1756190409191,1.50135255,110240.0,110230.0,0.09150974]
[1756190409410,1.65603255,110240.0,110230.0,0.09550974]
[1756190410613,1.65603255,110240.0,110230.0,0.09750974]
[1756190410809,1.65603255,110240.0,110230.0,0.00604772]
[1756190410810,1.74747784,110240.0,110230.0,0.00604772]
[1756190411401,1.65603255,110240.0,110230.0,0.00604772]
[1756190411615,1.65603255,110240.0,110230.0,0.00404772]
[1756190412248,1.65643255,110240.0,110230.0,0.00104772]
[1756190412447,1.99643255,110240.0,110230.0,0.00104772]
[1756190412694,2.03277243,110240.0,110230.0,0.00304772]
[1756190413030,2.06849482,110240.0,110230.0,0.00304772]
[1756190413507,2.06849476,110240.0,110230.0,0.00104772]
[1756190414654,2.13825476,110240.0,110230.0,0.00104772]
[1756190418152,2.13825476,110240.0,110230.0,4.772e-05]
[1756190419715,2.12137118,110240.0,110230.0,4.772e-05]
[1756190419923,1.98354806,110240.0,110230.0,4.772e-05]
[1756190420150,2.13782806,110240.0,110230.0,4.772e-05]
[1756190420573,2.13822806,110240.0,110230.0,4.772e-05]
[1756190421307,2.13782806,110240.0,110230.0,4.772e-05]
[1756190421912,2.12938573,110240.0,110230.0,4.772e-05]
[1756190422124,2.16220936,110240.0,110230.0,4.772e-05]
[1756190422676,2.14535349,110240.0,110230.0,4.772e-05]
[1756190422788,2.16221211,110240.0,110230.0,4.772e-05]
[1756190422993,2.16221349,110240.0,110230.0,4.772e-05]
[1756190423779,2.16207175,110240.0,110230.0,4.772e-05]
[1756190423994,2.16407175,110240.0,110230.0,0.00300772]
[1756190424284,1.47950261,110240.0,110230.0,0.00496772]
[1756190424455,1.40974261,110240.0,110230.0,0.00496772]
[1756190424994,0.7416682,110240.0,110230.0,0.00496772]
[1756190425203,1.4013133,110240.0,110230.0,0.00496772]
[1756190425430,1.40975169,110240.0,110230.0,0.00496772]
[1756190427524,1.25507169,110240.0,110230.0,0.00496772]
[1756190427711,1.06975169,110240.0,110230.0,0.00496772]
[1756190428048,1.0613133,110240.0,110230.0,0.00496772]
[1756190428290,1.04188607,110240.0,110230.0,0.00496772]
[1756190429961,1.03988607,110240.0,110230.0,0.00496772]
[1756190431875,1.03992187,110240.0,110230.0,0.00496772]
[1756190432266,1.04056187,110240.0,110230.0,0.00496772]
[1756190432475,1.03992187,110240.0,110230.0,0.00496772]
[1756190435973,0.88524187,110240.0,110230.0,0.09642974]
[1756190436185,0.88524187,110240.0,110230.0,0.27786854]
[1756190437064,0.22559677,110240.0,110230.0,0.27786854]
[1756190437281,0.20870235,110240.0,110230.0,0.27786854]
[1756190437454,0.20970235,110240.0,110230.0,0.27786854]
[1756190437653,0.02828,110240.0,110230.0,0.27786854]
[1756190438432,0.02828,110240.0,110230.0,0.34762854]
[1756190438652,0.001,110240.0,110230.0,0.34762854]
[1756190439490,0.001,110240.0,110230.0,0.34862854]
[1756190442064,0.001,110240.0,110230.0,1.02572266]
[1756190442480,0.001,110240.0,110230.0,0.36607756]
[1756190443849,0.001,110240.0,110230.0,0.36507756]
[1756190444486,0.001,110240.0,110230.0,0.36707756]
[1756190444761,0.001,110240.0,110230.0,0.52167756]
[1756190444961,0.001,110240.0,110230.0,0.36707756]
[1756190445180,0.001,110240.0,110230.0,0.52167756]
[1756190447533,0.001,110240.0,110230.0,0.36707756]
[1756190447700,0.001,110240.0,110230.0,0.52163756]
[1756190448942,0.001,110240.0,110230.0,0.51963756]
[1756190449367,0.001,110240.0,110230.0,0.36507756]
[1756190449578,0.001,110240.0,110230.0,0.51963756]
[1756190453816,0.001,110240.0,110230.0,0.51959756]
[1756190454240,0.6606451,110240.0,110230.0,0.51959756]
[1756190454659,0.84206745,110240.0,110230.0,0.36507756]
[1756190454870,0.84270745,110240.0,110230.0,0.31578974]
[1756190455078,0.84270745,110240.0,110230.0,0.16526974]
[1756190455278,0.84270745,110240.0,110230.0,0.31978974]
[1756190455496,0.84270745,110240.0,110230.0,0.50122854]
[1756190455702,0.84270745,110240.0,110230.0,0.50657854]
[1756190456755,0.001,110240.0,110230.0,0.50657854]
[1756190456949,0.6606451,110240.0,110230.0,0.50657854]
[1756190457596,0.84105188,110250.0,110230.0,0.50657854]
[1756190457729,0.84105188,110250.0,110240.0,0.09372979]
[1756190457928,0.84169188,110250.0,110240.0,0.09695979]
[1756190458337,0.84169188,110250.0,110240.0,0.25143979]
[1756190458580,0.84169188,110250.0,110240.0,0.24917202]
[1756190459291,0.84169188,110250.0,110240.0,0.24594202]
[1756190460119,0.84169188,110250.0,110240.0,0.09146202]
[1756190460271,0.84169188,110250.0,110240.0,0.24594202]
[1756190461088,0.64674197,110250.0,110240.0,0.24594202]
[1756190461298,0.82814875,110250.0,110240.0,0.25129202]
[1756190461710,0.18140678,110250.0,110240.0,0.09146202]
[1756190461915,0.84105188,110250.0,110240.0,0.24594202]
[1756190462329,0.84105188,110250.0,110240.0,0.09146202]
[1756190462736,1.65517698,110250.0,110230.0,0.00404772]
[1756190462935,1.50071255,110240.0,110230.0,0.24998974]
[1756190464353,1.52798955,110240.0,110230.0,0.24998974]
[1756190465012,1.52798955,110240.0,110230.0,0.09550974]
[1756190467122,1.52798955,110240.0,110230.0,0.00404772]
[1756190468837,1.86798955,110240.0,110230.0,0.00404772]
[1756190470032,2.02242955,110240.0,110230.0,0.00404772]
[1756190478703,2.02242955,110240.0,110230.0,4.772e-05]
[1756190482405,2.03933462,110240.0,110230.0,4.772e-05]
[1756190483588,2.03929462,110240.0,110230.0,4.772e-05]
[1756190484064,2.03929462,110240.0,110230.0,0.00104772]
[1756190485534,2.04774927,110240.0,110230.0,0.00104772]
[1756190486109,2.06722898,110240.0,110230.0,0.00104772]
[1756190486921,2.06722898,110240.0,110230.0,4.772e-05]
[1756190487947,2.0587825,110240.0,110230.0,4.772e-05]
[1756190488203,2.06723912,110240.0,110230.0,4.772e-05]
[1756190488418,2.06823912,110240.0,110230.0,4.772e-05]
[1756190488749,2.06824446,110240.0,110230.0,4.772e-05]
[1756190489926,1.91384446,110240.0,110230.0,4.772e-05]
[1756190490107,2.06820446,110240.0,110230.0,0.00525772]
[1756190490310,1.91384446,110240.0,110230.0,0.00525772]
[1756190490889,2.06820446,110240.0,110230.0,0.00525772]
[1756190491229,1.410567,110240.0,110230.0,0.00525772]
[1756190491415,2.0702121,110240.0,110230.0,0.00525772]
[1756190491839,1.9158521,110240.0,110230.0,0.00525772]
[1756190492037,2.0702121,110240.0,110230.0,0.00525772]
[1756190497407,2.07024076,110240.0,110230.0,0.00525772]
[1756190497809,2.07024076,110240.0,110230.0,4.772e-05]
[1756190498037,2.07024073,110240.0,110230.0,4.772e-05]
[1756190498747,1.91588073,110240.0,110230.0,4.772e-05]
[1756190499050,2.07020073,110240.0,110230.0,0.00326772]
[1756190499465,2.07020073,110240.0,110230.0,0.00525772]
[1756190503320,1.91588073,110240.0,110230.0,0.00525772]
[1756190503520,2.07020073,110240.0,110230.0,0.00525772]
[1756190503747,1.91588073,110240.0,110230.0,0.00525772]
[1756190503951,2.07016073,110240.0,110230.0,0.00525772]
[1756190504496,2.07016073,110240.0,110230.0,0.00326772]
[1756190504738,2.07016073,110240.0,110230.0,4.772e-05]
[1756190506976,2.04474926,110240.0,110230.0,4.772e-05]
[1756190507199,2.07018092,110240.0,110230.0,4.772e-05]
[1756190507371,2.16162621,110240.0,110230.0,4.772e-05]
[1756190507572,2.16162621,110240.0,110200.0,0.00322]
[1756190507573,0.53055953,110210.0,110200.0,0.00322]
[1756190507772,2.02108083,110210.0,110200.0,0.00322]
[1756190508034,2.04061067,110210.0,110200.0,0.00322]
[1756190508445,2.04059836,110210.0,110200.0,0.00322]
[1756190509266,2.02108169,110210.0,110200.0,0.00521]
[1756190509694,2.02108169,110210.0,110200.0,0.00721]
[1756190510527,2.00412973,110210.0,110200.0,0.00522]
[1756190510709,0.18150467,110190.0,110180.0,0.07377302]
[1756190510910,0.99538977,110190.0,110180.0,0.16722504]
[1756190511348,0.99538977,110190.0,110180.0,0.09714805]
[1756190512709,1.02267977,110190.0,110180.0,0.09714805]
[1756190517287,1.02267977,110190.0,110180.0,0.10014805]
[1756190518145,1.02267977,110190.0,110180.0,0.09714805]
[1756190518975,1.02267977,110190.0,110180.0,0.09814805]
[1756190520578,0.86843977,110190.0,110180.0,0.09814805]
[1756190520795,1.02267977,110190.0,110180.0,0.09814805]
[1756190521622,0.86843977,110190.0,110180.0,0.09814805]
[1756190521787,0.86843977,110190.0,110180.0,0.10041706]
[1756190521990,0.86843977,110190.0,110180.0,0.2819382]
[1756190522200,0.86843977,110190.0,110180.0,0.27966919]
[1756190522410,0.86843977,110190.0,110180.0,0.09814805]
[1756190525204,0.02404,110190.0,110180.0,1.0301003]
[1756190525375,0.01405,110190.0,110180.0,1.0999003]
[1756190525832,0.84110377,110220.0,110190.0,0.19055285]
[1756190526038,0.84110377,110220.0,110200.0,0.4271493]
[1756190526343,0.84110377,110220.0,110210.0,0.18147173]
[1756190526547,0.84110377,110220.0,110210.0,0.27293375]
[1756190527401,0.84628377,110220.0,110210.0,0.09146202]
[1756190527606,1.00048377,110220.0,110210.0,0.09146202]
[1756190529496,0.84628377,110220.0,110210.0,0.09146202]
[1756190531804,0.88057684,110230.0,110210.0,0.27520214]
[1756190532030,1.22057684,110230.0,110220.0,0.09146202]
[1756190532446,1.22261684,110230.0,110220.0,0.09146202]
[1756190533300,1.19533584,110230.0,110220.0,0.09146202]
[1756190534371,1.19533584,110230.0,110200.0,0.26385948]
[1756190534372,0.15948122,110220.0,110200.0,0.33564808]
[1756190534546,0.84111683,110210.0,110200.0,0.33569577]
[1756190534751,0.84111683,110210.0,110200.0,0.42715779]
[1756190535754,0.6596451,110210.0,110200.0,0.42715779]
[1756190536181,0.6596451,110210.0,110200.0,0.27299779]
[1756190536390,0.6596451,110210.0,110200.0,0.42715779]
[1756190536590,0.82226632,110220.0,110210.0,0.18147173]
[1756190536788,0.81912632,110220.0,110210.0,0.27293375]
[1756190536995,0.82226632,110220.0,110210.0,0.27293375]
[1756190537201,0.82430632,110220.0,110210.0,0.27293375]
[1756190538624,0.82430632,110220.0,110210.0,0.27393375]
[1756190538827,0.82430632,110220.0,110210.0,0.09246202]
[1756190540264,0.97842632,110220.0,110210.0,0.09246202]
[1756190546168,0.97842632,110220.0,110210.0,0.001]
[1756190546608,0.97842632,110220.0,110200.0,0.15412769]
[1756190546609,0.18147173,110210.0,110200.0,0.15412769]
[1756190546844,0.84320683,110210.0,110200.0,0.24558971]
[1756190547066,0.84621683,110210.0,110200.0,0.24558971]
[1756190547506,0.84621683,110210.0,110200.0,0.42707791]
[1756190550781,0.84621683,110210.0,110200.0,0.24558971]
[1756190551044,0.84621683,110210.0,110200.0,0.09150971]
[1756190551281,0.84621683,110210.0,110200.0,0.24554971]
[1756190552722,0.84621683,110210.0,110200.0,0.42703791]
[1756190554011,0.84621683,110210.0,110200.0,0.24554971]
[1756190554941,0.84621683,110210.0,110200.0,0.24954971]
[1756190555069,0.84621683,110210.0,110200.0,0.25154971]
[1756190556999,0.84621683,110210.0,110200.0,0.25121458]
[1756190557369,0.84621683,110210.0,110200.0,0.43270278]
[1756190557716,0.84412683,110210.0,110200.0,0.43270278]
[1756190557948,0.84621683,110210.0,110200.0,0.43270278]
[1756190559044,0.84621683,110210.0,110200.0,0.25121458]
[1756190559679,0.84621683,110210.0,110200.0,0.43270278]
[1756190560438,0.84412683,110210.0,110200.0,0.43270278]
[1756190560640,0.84941932,110220.0,110210.0,0.18147173]
[1756190560964,0.85150932,110220.0,110210.0,0.27293375]
[1756190561655,0.6899381,110220.0,110210.0,0.27293375]
[1756190561856,0.027283,110220.0,110210.0,0.27293375]
[1756190562288,0.85316584,110230.0,110210.0,0.27293375]
[1756190562492,0.85316584,110230.0,110220.0,0.24546202]
[1756190562665,0.85316584,110230.0,110220.0,0.42691729]
[1756190562666,0.85525584,110230.0,110220.0,0.42691729]
[1756190566316,0.85525584,110230.0,110220.0,0.09146202]
[1756190566513,0.33381219,110240.0,110220.0,0.24761202]
[1756190566719,0.84320403,110230.0,110220.0,0.24546202]
[1756190566907,0.85227597,110230.0,110220.0,0.24546202]
[1756190567326,0.85227597,110230.0,110220.0,0.09146202]
[1756190567543,0.85227597,110230.0,110220.0,0.24542202]
[1756190568154,0.85227597,110230.0,110220.0,0.24757202]
[1756190568658,0.85528597,110230.0,110220.0,0.24757202]
[1756190569691,0.85018597,110230.0,110220.0,0.24757202]
[1756190569870,0.85018597,110230.0,110220.0,0.25053202]
[1756190570376,0.85018597,110230.0,110220.0,0.25153202]
[1756190570875,0.85018597,110230.0,110220.0,0.24857202]
[1756190571097,0.6596451,110230.0,110220.0,0.43002729]
[1756190571302,0.81518829,110240.0,110220.0,0.43298729]
[1756190573563,0.81618829,110240.0,110220.0,0.43298729]
[1756190575172,0.15353319,110240.0,110230.0,0.18370678]
[1756190575371,0.15353319,110240.0,110230.0,0.27505082]
[1756190575480,0.81317829,110240.0,110230.0,0.27505082]
[1756190576019,0.81529829,110240.0,110230.0,0.42901082]
[1756190576237,0.81824829,110240.0,110230.0,0.42901082]
[1756190577008,0.81824829,110240.0,110230.0,0.27505082]
[1756190577228,0.81824829,110240.0,110230.0,0.24757202]
[1756190577830,0.81724829,110240.0,110230.0,0.24757202]
[1756190578795,0.81824829,110240.0,110230.0,0.24757202]
[1756190579851,0.81824829,110240.0,110230.0,0.24542202]
[1756190581216,0.81824829,110240.0,110230.0,0.09146202]
[1756190581439,1.47789339,110240.0,110230.0,0.24542202]
[1756190581636,0.81824829,110240.0,110230.0,0.24542202]
[1756190581864,0.81924829,110240.0,110230.0,0.24542202]
[1756190582498,0.15960319,110240.0,110230.0,0.24542202]
[1756190582700,0.81924829,110240.0,110230.0,0.24542202]
[1756190583571,0.81824829,110240.0,110230.0,0.24542202]
[1756190584007,1.54675564,110240.0,110230.0,0.09146202]
[1756190584215,1.47789339,110240.0,110230.0,0.09146202]
[1756190585219,0.81824829,110240.0,110230.0,0.09146202]
[1756190586673,1.47789339,110240.0,110230.0,0.09146202]
[1756190587350,1.47789339,110240.0,110230.0,0.24646202]
[1756190588178,1.47889339,110240.0,110230.0,0.24646202]
[1756190590800,0.81924829,110240.0,110230.0,0.24646202]
[1756190591219,1.47889339,110240.0,110230.0,0.24646202]
[1756190592059,0.81924829,110240.0,110230.0,0.24646202]
[1756190592601,0.81629829,110240.0,110230.0,0.24852202]
[1756190592804,0.81417829,110240.0,110230.0,0.25176202]
[1756190593204,0.81629829,110240.0,110230.0,0.24852202]
[1756190593773,0.81417829,110240.0,110230.0,0.24852202]
[1756190594006,0.81417829,110240.0,110230.0,0.25176202]
[1756190594199,0.81629829,110240.0,110230.0,0.24852202]
[1756190594323,0.81924829,110240.0,110230.0,0.24852202]
[1756190596158,0.81629829,110240.0,110230.0,0.24852202]
[1756190598595,0.81924829,110240.0,110230.0,0.24852202]
[1756190599617,0.81629829,110240.0,110230.0,0.24852202]
[1756190599984,0.002,110240.0,110230.0,0.43320082]
[1756190600219,0.002,110240.0,110230.0,0.50296082]
[1756190602766,0.001,110240.0,110230.0,0.50296082]
[1756190606089,0.001,110240.0,110230.0,0.77166082]